[Event "Early-Titled-Tuesday-Blitz-January-23-2024"]
[Site "Chess.com"]
[Date "2024.01.23"]
[Round "10"]
[White "KNVB"]
[Black "bangchess21"]
[Result "0-1"]
[WhiteElo "2751"]
[BlackElo "2801"]
[TimeControl "180+1"]
[EndTime "9:56:50 PST"]
[Termination "bangchess21 won by checkmate"]

1. d4 {[%clk 0:03:00.9]} 1... Nf6 {[%clk 0:02:59.7]} 2. Bf4 {[%clk 0:03:00.6]}
2... e6 {[%clk 0:02:59.6]} 3. e3 {[%clk 0:03:00.9]} 3... d5 {[%clk 0:03:00]} 4.
Nf3 {[%clk 0:03:01.3]} 4... Bd6 {[%clk 0:03:00.7]} 5. Nbd2 {[%clk 0:03:02.2]}
5... O-O {[%clk 0:03:00.7]} 6. Bd3 {[%clk 0:03:02.5]} 6... Bxf4 {[%clk
0:03:00.8]} 7. exf4 {[%clk 0:03:03.4]} 7... b6 {[%clk 0:03:00.7]} 8. Qe2 {[%clk
0:03:03.4]} 8... a5 {[%clk 0:03:00.3]} 9. O-O {[%clk 0:03:04]} 9... Qd6 {[%clk
0:02:58.8]} 10. g3 {[%clk 0:03:04.1]} 10... Ba6 {[%clk 0:02:59.2]} 11. Bxa6
{[%clk 0:03:02]} 11... Nxa6 {[%clk 0:03:00.1]} 12. c3 {[%clk 0:02:40.1]} 12...
c5 {[%clk 0:02:58.2]} 13. Rfe1 {[%clk 0:02:37.1]} 13... Nb8 {[%clk 0:02:48]} 14.
c4 {[%clk 0:02:14.9]} 14... cxd4 {[%clk 0:02:41.9]} 15. Nxd4 {[%clk 0:02:14.3]}
15... dxc4 {[%clk 0:02:23.6]} 16. Nb5 {[%clk 0:02:11.8]} 16... Qb4 {[%clk
0:02:14]} 17. a4 {[%clk 0:02:10.4]} 17... Na6 {[%clk 0:02:07.1]} 18. Nxc4 {[%clk
0:02:04.5]} 18... Nd5 {[%clk 0:02:06.9]} 19. Ne5 {[%clk 0:01:00.2]} 19... Nc5
{[%clk 0:02:00.2]} 20. Nc6 {[%clk 0:00:53.7]} 20... Qb3 {[%clk 0:01:59.8]} 21.
Nbd4 {[%clk 0:00:24.8]} 21... Qd3 {[%clk 0:01:59.7]} 22. Qxd3 {[%clk 0:00:03.3]}
22... Nxd3 {[%clk 0:02:00.6]} 23. Re2 {[%clk 0:00:03]} 23... Rfc8 {[%clk
0:02:01.2]} 24. Rd1 {[%clk 0:00:02.2]} 24... Nc5 {[%clk 0:01:46]} 25. f5 {[%clk
0:00:02.6]} 25... Nxa4 {[%clk 0:01:28.7]} 26. fxe6 {[%clk 0:00:02.6]} 26... fxe6
{[%clk 0:01:29.6]} 27. Rxe6 {[%clk 0:00:02.2]} 27... Nxb2 {[%clk 0:01:13.6]} 28.
Rb1 {[%clk 0:00:02.6]} 28... Nc4 {[%clk 0:01:13.4]} 29. Rb5 {[%clk 0:00:02.9]}
29... Nc7 {[%clk 0:01:09.2]} 30. Ne7+ {[%clk 0:00:03]} 30... Kf7 {[%clk
0:01:09.2]} 31. Rf5+ {[%clk 0:00:02.6]} 31... Ke8 {[%clk 0:01:06.6]} 32. Re2
{[%clk 0:00:02.8]} 32... Rd8 {[%clk 0:00:51.8]} 33. Nec6+ {[%clk 0:00:02.1]}
33... Kd7 {[%clk 0:00:52.7]} 34. Rf7+ {[%clk 0:00:02.3]} 34... Kd6 {[%clk
0:00:52.7]} 35. Nxd8 {[%clk 0:00:02]} 35... Rxd8 {[%clk 0:00:53.6]} 36. Nf5+
{[%clk 0:00:01.9]} 36... Kc6 {[%clk 0:00:52.9]} 37. Ree7 {[%clk 0:00:02.1]}
37... Nd5 {[%clk 0:00:52.2]} 38. Ra7 {[%clk 0:00:02.3]} 38... Re8 {[%clk
0:00:48]} 39. Nxg7 {[%clk 0:00:02.7]} 39... Re1+ {[%clk 0:00:48]} 40. Kg2 {[%clk
0:00:03.4]} 40... b5 {[%clk 0:00:48.1]} 41. Rf8 {[%clk 0:00:03.4]} 41... Kb6
{[%clk 0:00:44.6]} 42. Rff7 {[%clk 0:00:03.9]} 42... a4 {[%clk 0:00:43.7]} 43.
Nf5 {[%clk 0:00:04.1]} 43... a3 {[%clk 0:00:42.2]} 44. Nd4 {[%clk 0:00:04.6]}
44... Kc5 {[%clk 0:00:39.5]} 45. Nc2 {[%clk 0:00:03.2]} 45... Re2 {[%clk
0:00:32.1]} 46. Nxa3 {[%clk 0:00:03.4]} 46... Ne5 {[%clk 0:00:33]} 47. Rf5
{[%clk 0:00:02.2]} 47... Ne3+ {[%clk 0:00:33.9]} 48. Kh3 {[%clk 0:00:01.2]}
48... Nxf5 {[%clk 0:00:34.8]} 49. Nxb5 {[%clk 0:00:01.1]} 49... Kxb5 {[%clk
0:00:33.5]} 50. Rxh7 {[%clk 0:00:01.8]} 50... Rxf2 {[%clk 0:00:32.4]} 51. Rh5
{[%clk 0:00:01.8]} 51... Kc4 {[%clk 0:00:29.5]} 52. g4 {[%clk 0:00:01.8]} 52...
Rf3+ {[%clk 0:00:30]} 53. Kg2 {[%clk 0:00:01.4]} 53... Ne3+ {[%clk 0:00:30.6]}
54. Kg1 {[%clk 0:00:01.6]} 54... Rf1# {[%clk 0:00:31.2]} 0-1

[Event "Early-Titled-Tuesday-Blitz-January-23-2024"]
[Site "Chess.com"]
[Date "2024.01.23"]
[Round "10"]
[White "RCone"]
[Black "Ati1517"]
[Result "1-0"]
[WhiteElo "2422"]
[BlackElo "2213"]
[TimeControl "180+1"]
[EndTime "9:56:52 PST"]
[Termination "RCone won on time"]

1. e4 {[%clk 0:03:00.9]} 1... c5 {[%clk 0:02:59.4]} 2. Nc3 {[%clk 0:03:00.4]}
2... Nc6 {[%clk 0:02:58.1]} 3. Bb5 {[%clk 0:03:00.3]} 3... d6 {[%clk 0:02:57.8]}
4. Bxc6+ {[%clk 0:02:58]} 4... bxc6 {[%clk 0:02:58.7]} 5. d3 {[%clk 0:02:58.4]}
5... Nf6 {[%clk 0:02:57.9]} 6. f4 {[%clk 0:02:58.5]} 6... g6 {[%clk 0:02:56.2]}
7. Nf3 {[%clk 0:02:58.1]} 7... Bg7 {[%clk 0:02:56.4]} 8. O-O {[%clk 0:02:53]}
8... O-O {[%clk 0:02:53.3]} 9. Bd2 {[%clk 0:02:46.7]} 9... d5 {[%clk 0:02:50.3]}
10. e5 {[%clk 0:02:46.4]} 10... Ne8 {[%clk 0:02:48.5]} 11. Na4 {[%clk 0:02:46]}
11... c4 {[%clk 0:02:39.6]} 12. dxc4 {[%clk 0:02:44.5]} 12... dxc4 {[%clk
0:02:40.5]} 13. Be3 {[%clk 0:02:32.3]} 13... Nc7 {[%clk 0:02:38.8]} 14. Qe2
{[%clk 0:02:05.4]} 14... Nd5 {[%clk 0:02:35.9]} 15. Rfd1 {[%clk 0:02:04.9]}
15... Be6 {[%clk 0:02:29.9]} 16. Nc5 {[%clk 0:02:01]} 16... Bh6 {[%clk
0:02:24.1]} 17. Nxe6 {[%clk 0:01:54.8]} 17... fxe6 {[%clk 0:02:25]} 18. g3
{[%clk 0:01:49.3]} 18... Qc7 {[%clk 0:02:18.6]} 19. Nd4 {[%clk 0:01:37.3]} 19...
Kf7 {[%clk 0:02:11.7]} 20. Bf2 {[%clk 0:01:35.3]} 20... c5 {[%clk 0:02:09.8]}
21. Nf3 {[%clk 0:01:33.6]} 21... Nb6 {[%clk 0:02:09.5]} 22. h4 {[%clk
0:01:31.4]} 22... Rad8 {[%clk 0:02:06]} 23. Qe3 {[%clk 0:01:30.8]} 23... Rxd1+
{[%clk 0:01:58.4]} 24. Rxd1 {[%clk 0:01:31.7]} 24... Rc8 {[%clk 0:01:57.9]} 25.
Qc3 {[%clk 0:01:25.5]} 25... Qc6 {[%clk 0:01:53.4]} 26. Nd2 {[%clk 0:01:23.4]}
26... Rd8 {[%clk 0:01:45.1]} 27. Re1 {[%clk 0:01:23.9]} 27... Na4 {[%clk
0:01:42.6]} 28. Qe3 {[%clk 0:01:17.6]} 28... Nxb2 {[%clk 0:01:40.4]} 29. Ne4
{[%clk 0:01:17.5]} 29... Na4 {[%clk 0:01:38.4]} 30. Nxc5 {[%clk 0:01:09.8]}
30... Nxc5 {[%clk 0:01:37.4]} 31. Qxc5 {[%clk 0:01:10.7]} 31... Qf3 {[%clk
0:01:37.3]} 32. Qe3 {[%clk 0:01:09.5]} 32... Qg4 {[%clk 0:01:28]} 33. Qe2 {[%clk
0:01:08.9]} 33... Qf5 {[%clk 0:01:24.6]} 34. Qxc4 {[%clk 0:01:06.4]} 34... Rd2
{[%clk 0:01:22.6]} 35. Re2 {[%clk 0:01:06.7]} 35... Rd1+ {[%clk 0:01:19.5]} 36.
Kg2 {[%clk 0:01:06.4]} 36... Qg4 {[%clk 0:01:18.3]} 37. Qe4 {[%clk 0:01:01.1]}
37... Ra1 {[%clk 0:00:50.3]} 38. c4 {[%clk 0:01:00]} 38... Rc1 {[%clk
0:00:39.6]} 39. Bxa7 {[%clk 0:00:56.4]} 39... Ke8 {[%clk 0:00:35.5]} 40. Bf2
{[%clk 0:00:56.6]} 40... Bxf4 {[%clk 0:00:23.7]} 41. Qa8+ {[%clk 0:00:52]} 41...
Kf7 {[%clk 0:00:23]} 42. Qf3 {[%clk 0:00:52.6]} 42... Qxf3+ {[%clk 0:00:22.3]}
43. Kxf3 {[%clk 0:00:53.5]} 43... Bh6 {[%clk 0:00:20.4]} 44. c5 {[%clk 0:00:48]}
44... Bg7 {[%clk 0:00:20.3]} 45. Bd4 {[%clk 0:00:47.3]} 45... Rc4 {[%clk
0:00:20.3]} 46. Ke4 {[%clk 0:00:47.1]} 46... Ke8 {[%clk 0:00:19.6]} 47. Kd3
{[%clk 0:00:45.7]} 47... Ra4 {[%clk 0:00:18.7]} 48. c6 {[%clk 0:00:42.8]} 48...
Kd8 {[%clk 0:00:18.8]} 49. Bb6+ {[%clk 0:00:42]} 49... Kc8 {[%clk 0:00:18.8]}
50. Kc3 {[%clk 0:00:24.4]} 50... Ra3+ {[%clk 0:00:15.6]} 51. Kb4 {[%clk
0:00:22.5]} 51... Rxg3 {[%clk 0:00:15.3]} 52. Rd2 {[%clk 0:00:22.8]} 52... Rg4+
{[%clk 0:00:15]} 53. Kb5 {[%clk 0:00:22.8]} 1-0

[Event "Early-Titled-Tuesday-Blitz-January-23-2024"]
[Site "Chess.com"]
[Date "2024.01.23"]
[Round "10"]
[White "snowlord"]
[Black "viktorskliarov"]
[Result "1/2-1/2"]
[WhiteElo "2861"]
[BlackElo "2678"]
[TimeControl "180+1"]
[EndTime "9:56:57 PST"]
[Termination "Game drawn by repetition"]

1. Nf3 {[%clk 0:02:39.7]} 1... g6 {[%clk 0:02:59.1]} 2. e4 {[%clk 0:02:38.9]}
2... c5 {[%clk 0:02:58.5]} 3. c4 {[%clk 0:02:35.7]} 3... Nc6 {[%clk 0:02:56.9]}
4. d4 {[%clk 0:02:35.1]} 4... cxd4 {[%clk 0:02:57]} 5. Nxd4 {[%clk 0:02:34.9]}
5... Bg7 {[%clk 0:02:57.7]} 6. Be3 {[%clk 0:02:34.9]} 6... Nf6 {[%clk
0:02:58.1]} 7. Nc3 {[%clk 0:02:35.1]} 7... Ng4 {[%clk 0:02:58.4]} 8. Qxg4 {[%clk
0:02:35]} 8... Nxd4 {[%clk 0:02:58.7]} 9. Qd1 {[%clk 0:02:35.3]} 9... Ne6 {[%clk
0:02:53.1]} 10. Rc1 {[%clk 0:02:34.4]} 10... d6 {[%clk 0:02:47.2]} 11. g3 {[%clk
0:02:27.1]} 11... b6 {[%clk 0:02:28.7]} 12. Bg2 {[%clk 0:02:25.6]} 12... Bb7
{[%clk 0:02:28.2]} 13. O-O {[%clk 0:02:21.6]} 13... O-O {[%clk 0:02:25.3]} 14.
Qd2 {[%clk 0:02:19.6]} 14... Rc8 {[%clk 0:02:12.2]} 15. b3 {[%clk 0:02:18.9]}
15... Qd7 {[%clk 0:01:52.3]} 16. Bh3 {[%clk 0:02:00.8]} 16... f5 {[%clk
0:01:13.6]} 17. exf5 {[%clk 0:02:00]} 17... gxf5 {[%clk 0:01:13.1]} 18. Nd5
{[%clk 0:01:59.1]} 18... Nc5 {[%clk 0:01:07.2]} 19. f3 {[%clk 0:01:15.1]} 19...
e6 {[%clk 0:00:43.4]} 20. Nf4 {[%clk 0:01:15.1]} 20... a5 {[%clk 0:00:39.9]} 21.
Nh5 {[%clk 0:01:11.5]} 21... Be5 {[%clk 0:00:31.3]} 22. Bh6 {[%clk 0:01:00.9]}
22... Rf7 {[%clk 0:00:28.3]} 23. Rce1 {[%clk 0:00:56.8]} 23... Kh8 {[%clk
0:00:19.8]} 24. Be3 {[%clk 0:00:28.2]} 24... Rg8 {[%clk 0:00:16.7]} 25. Bd4
{[%clk 0:00:22.2]} 25... Bxd4+ {[%clk 0:00:14]} 26. Qxd4+ {[%clk 0:00:23.1]}
26... e5 {[%clk 0:00:14.4]} 27. Qc3 {[%clk 0:00:20.8]} 27... Qe7 {[%clk
0:00:11.7]} 28. f4 {[%clk 0:00:17.5]} 28... Ne4 {[%clk 0:00:07.1]} 29. Qb2
{[%clk 0:00:17.9]} 29... Qh4 {[%clk 0:00:05.7]} 30. fxe5 {[%clk 0:00:10.5]}
30... Qxh5 {[%clk 0:00:05.9]} 31. exd6+ {[%clk 0:00:09.2]} 31... Rfg7 {[%clk
0:00:03.1]} 32. Bg2 {[%clk 0:00:09.7]} 32... Bc8 {[%clk 0:00:02.1]} 33. Qe5
{[%clk 0:00:02.2]} 33... Qh6 {[%clk 0:00:02.3]} 34. Rxe4 {[%clk 0:00:01.9]}
34... fxe4 {[%clk 0:00:02.5]} 35. Rf6 {[%clk 0:00:02.7]} 35... Qc1+ {[%clk
0:00:02.2]} 36. Rf1 {[%clk 0:00:03.4]} 36... Qe3+ {[%clk 0:00:02.3]} 37. Kh1
{[%clk 0:00:03.1]} 37... Qd2 {[%clk 0:00:02.4]} 38. Bxe4 {[%clk 0:00:03.2]}
38... Rd8 {[%clk 0:00:02.7]} 39. Bd5 {[%clk 0:00:03]} 39... Qh6 {[%clk
0:00:02.2]} 40. Rf6 {[%clk 0:00:02.6]} 40... Qc1+ {[%clk 0:00:02.2]} 41. Kg2
{[%clk 0:00:03.2]} 41... Qd2+ {[%clk 0:00:02.8]} 42. Rf2 {[%clk 0:00:03.8]}
42... Qh6 {[%clk 0:00:02.9]} 43. Rf7 {[%clk 0:00:04.3]} 43... Qd2+ {[%clk
0:00:03.1]} 44. Rf2 {[%clk 0:00:03]} 44... Qh6 {[%clk 0:00:03.6]} 45. Rf7 {[%clk
0:00:03.5]} 45... Qd2+ {[%clk 0:00:03.8]} 46. Rf2 {[%clk 0:00:03.7]} 1/2-1/2

[Event "Early-Titled-Tuesday-Blitz-January-23-2024"]
[Site "Chess.com"]
[Date "2024.01.23"]
[Round "10"]
[White "Yurasova_Daria"]
[Black "YurasovMat-2012"]
[Result "1-0"]
[WhiteElo "2492"]
[BlackElo "2592"]
[TimeControl "180+1"]
[EndTime "9:56:58 PST"]
[Termination "Yurasova_Daria won on time"]

1. d4 {[%clk 0:03:00.9]} 1... d5 {[%clk 0:02:59.3]} 2. Nf3 {[%clk 0:02:59.2]}
2... Nf6 {[%clk 0:02:58.9]} 3. Bf4 {[%clk 0:02:58.8]} 3... c5 {[%clk 0:02:58.1]}
4. e3 {[%clk 0:02:57.7]} 4... Nc6 {[%clk 0:02:57.8]} 5. Nbd2 {[%clk 0:02:57.9]}
5... cxd4 {[%clk 0:02:57.1]} 6. exd4 {[%clk 0:02:56.2]} 6... Bg4 {[%clk
0:02:56.4]} 7. c3 {[%clk 0:02:55.7]} 7... e6 {[%clk 0:02:39.7]} 8. Qb3 {[%clk
0:02:51]} 8... Qc8 {[%clk 0:02:34.9]} 9. Bb5 {[%clk 0:02:47.5]} 9... Nd7 {[%clk
0:02:34.5]} 10. O-O {[%clk 0:02:42.9]} 10... a6 {[%clk 0:02:33.8]} 11. Bd3
{[%clk 0:02:42.3]} 11... Be7 {[%clk 0:02:28.1]} 12. h3 {[%clk 0:02:40.4]} 12...
Bh5 {[%clk 0:02:26.4]} 13. Rae1 {[%clk 0:02:33.9]} 13... O-O {[%clk 0:02:25.6]}
14. Qc2 {[%clk 0:02:28.2]} 14... Bg6 {[%clk 0:02:24.3]} 15. Bxg6 {[%clk
0:02:26]} 15... hxg6 {[%clk 0:02:25.2]} 16. Qd3 {[%clk 0:02:26.9]} 16... b5
{[%clk 0:02:22.4]} 17. b4 {[%clk 0:02:18.7]} 17... a5 {[%clk 0:02:21.4]} 18. a3
{[%clk 0:02:18.4]} 18... axb4 {[%clk 0:02:21.4]} 19. axb4 {[%clk 0:02:18.6]}
19... Qb7 {[%clk 0:02:19.7]} 20. Nb3 {[%clk 0:02:17.6]} 20... Ra3 {[%clk
0:02:18.1]} 21. Qc2 {[%clk 0:02:17.5]} 21... Rc8 {[%clk 0:02:11.3]} 22. Nc5
{[%clk 0:02:17.1]} 22... Nxc5 {[%clk 0:02:05.7]} 23. dxc5 {[%clk 0:02:13]} 23...
Bf6 {[%clk 0:01:55.5]} 24. Ne5 {[%clk 0:02:09.1]} 24... d4 {[%clk 0:01:49]} 25.
Nxc6 {[%clk 0:01:49.9]} 25... Qxc6 {[%clk 0:01:46.6]} 26. cxd4 {[%clk
0:01:44.2]} 26... Bxd4 {[%clk 0:01:46.2]} 27. Be5 {[%clk 0:01:36.5]} 27... Bxe5
{[%clk 0:01:18.9]} 28. Rxe5 {[%clk 0:01:37.4]} 28... Rd8 {[%clk 0:01:19]} 29.
Qe4 {[%clk 0:01:21.3]} 29... Qc7 {[%clk 0:01:12.9]} 30. Qe2 {[%clk 0:01:09.2]}
30... Rdd3 {[%clk 0:01:08.1]} 31. Re4 {[%clk 0:01:08]} 31... Qc6 {[%clk
0:01:02.5]} 32. Rf4 {[%clk 0:01:04]} 32... Rd8 {[%clk 0:00:07.6]} 33. Qe5 {[%clk
0:01:00]} 33... Rad3 {[%clk 0:00:05.7]} 34. Kh2 {[%clk 0:00:51.3]} 34... f6
{[%clk 0:00:05.6]} 35. Qe2 {[%clk 0:00:41.6]} 35... e5 {[%clk 0:00:05.1]} 36.
Rg4 {[%clk 0:00:30.1]} 36... f5 {[%clk 0:00:04.4]} 37. Rg3 {[%clk 0:00:24.7]}
37... e4 {[%clk 0:00:04.2]} 38. Ra1 {[%clk 0:00:22.4]} 38... Qc7 {[%clk
0:00:03.9]} 39. Qa2+ {[%clk 0:00:18.3]} 39... Kf8 {[%clk 0:00:02.7]} 40. Qa5
{[%clk 0:00:13.9]} 40... Qe5 {[%clk 0:00:02]} 41. Qxb5 {[%clk 0:00:11.2]} 1-0

[Event "Early-Titled-Tuesday-Blitz-January-23-2024"]
[Site "Chess.com"]
[Date "2024.01.23"]
[Round "10"]
[White "Manukyan_Artak"]
[Black "DrCeltic"]
[Result "1-0"]
[WhiteElo "2524"]
[BlackElo "2600"]
[TimeControl "180+1"]
[EndTime "9:57:00 PST"]
[Termination "Manukyan_Artak won by resignation"]

1. e4 {[%clk 0:02:50.2]} 1... c5 {[%clk 0:02:59.8]} 2. Nf3 {[%clk 0:02:49.5]}
2... e6 {[%clk 0:03:00]} 3. c3 {[%clk 0:02:49.1]} 3... Nf6 {[%clk 0:03:00.6]} 4.
e5 {[%clk 0:02:49.5]} 4... Nd5 {[%clk 0:03:01.2]} 5. d4 {[%clk 0:02:50.4]} 5...
cxd4 {[%clk 0:03:02]} 6. cxd4 {[%clk 0:02:51.3]} 6... d6 {[%clk 0:03:02.7]} 7.
Nc3 {[%clk 0:02:51.9]} 7... Nxc3 {[%clk 0:03:03.3]} 8. bxc3 {[%clk 0:02:52.8]}
8... Qc7 {[%clk 0:03:03.8]} 9. Bd2 {[%clk 0:02:52.7]} 9... Nd7 {[%clk
0:03:04.3]} 10. Bb5 {[%clk 0:02:52.5]} 10... a6 {[%clk 0:03:03.8]} 11. Bxd7+
{[%clk 0:02:52.4]} 11... Bxd7 {[%clk 0:03:04.7]} 12. O-O {[%clk 0:02:52.7]}
12... Be7 {[%clk 0:03:04.4]} 13. Re1 {[%clk 0:02:52]} 13... O-O {[%clk
0:03:04.4]} 14. exd6 {[%clk 0:02:51.9]} 14... Bxd6 {[%clk 0:03:04.6]} 15. Ne5
{[%clk 0:02:52.8]} 15... b5 {[%clk 0:02:50.1]} 16. Qh5 {[%clk 0:02:51]} 16...
Bxe5 {[%clk 0:02:23]} 17. Rxe5 {[%clk 0:02:48.3]} 17... f6 {[%clk 0:02:20.2]}
18. Rc5 {[%clk 0:02:46.2]} 18... Qd6 {[%clk 0:02:16.7]} 19. f4 {[%clk
0:02:36.6]} 19... Be8 {[%clk 0:02:16]} 20. Qf3 {[%clk 0:02:30]} 20... Bg6 {[%clk
0:02:15]} 21. Qe3 {[%clk 0:02:25.1]} 21... Rac8 {[%clk 0:02:13]} 22. Re1 {[%clk
0:02:16.1]} 22... Bf5 {[%clk 0:02:08.8]} 23. Rxc8 {[%clk 0:02:03.3]} 23... Rxc8
{[%clk 0:02:09.7]} 24. h3 {[%clk 0:02:03.3]} 24... h5 {[%clk 0:02:06.6]} 25. Kh2
{[%clk 0:01:54.6]} 25... Qd5 {[%clk 0:02:01.9]} 26. a3 {[%clk 0:01:46.1]} 26...
Qa2 {[%clk 0:01:50.7]} 27. Re2 {[%clk 0:01:29]} 27... Qxa3 {[%clk 0:01:46.5]}
28. Qf3 {[%clk 0:01:29.3]} 28... Qd6 {[%clk 0:01:37.8]} 29. Qxh5 {[%clk
0:01:24.7]} 29... a5 {[%clk 0:01:28.4]} 30. Qf3 {[%clk 0:01:17.8]} 30... a4
{[%clk 0:01:22.4]} 31. Qb7 {[%clk 0:01:11.1]} 31... Rb8 {[%clk 0:01:20.5]} 32.
Qa7 {[%clk 0:01:06.2]} 32... Bd3 {[%clk 0:01:12.9]} 33. Re3 {[%clk 0:01:01.3]}
33... Qxf4+ {[%clk 0:01:08.5]} 34. Rg3 {[%clk 0:01:01.3]} 34... Qxg3+ {[%clk
0:00:56.6]} 35. Kxg3 {[%clk 0:01:00.6]} 35... Re8 {[%clk 0:00:53.8]} 36. Bf4
{[%clk 0:00:55.7]} 36... Bc4 {[%clk 0:00:49.6]} 37. Bd6 {[%clk 0:00:54.9]} 37...
Bd5 {[%clk 0:00:47.9]} 38. Bb4 {[%clk 0:00:53]} 38... Bc4 {[%clk 0:00:48.1]} 39.
Qc7 {[%clk 0:00:50.6]} 39... Kh7 {[%clk 0:00:42.6]} 40. Bd6 {[%clk 0:00:50.3]}
40... Kg6 {[%clk 0:00:41.8]} 41. Kf4 {[%clk 0:00:49.7]} 41... Bd5 {[%clk
0:00:42]} 42. g4 {[%clk 0:00:49.4]} 42... Rh8 {[%clk 0:00:42.4]} 43. Kg3 {[%clk
0:00:49.3]} 43... Re8 {[%clk 0:00:42.1]} 44. h4 {[%clk 0:00:49.3]} 44... Rg8
{[%clk 0:00:38]} 45. h5+ {[%clk 0:00:49.2]} 45... Kh7 {[%clk 0:00:38.1]} 46. Be7
{[%clk 0:00:46.4]} 46... Kh6 {[%clk 0:00:33.7]} 47. Ba3 {[%clk 0:00:42.7]} 47...
g6 {[%clk 0:00:32]} 48. Bc1+ {[%clk 0:00:41.4]} 48... g5 {[%clk 0:00:31.8]} 49.
Qf7 {[%clk 0:00:40.7]} 49... Rg7 {[%clk 0:00:27.5]} 50. Qxf6+ {[%clk 0:00:40.6]}
50... Kh7 {[%clk 0:00:27.9]} 51. Ba3 {[%clk 0:00:38.8]} 51... e5 {[%clk
0:00:24.3]} 52. Qxe5 {[%clk 0:00:34.5]} 52... Bc4 {[%clk 0:00:24.9]} 53. Bd6
{[%clk 0:00:30.1]} 53... Kg8 {[%clk 0:00:19.2]} 54. Qe8+ {[%clk 0:00:24.6]}
54... Kh7 {[%clk 0:00:18.9]} 55. Be5 {[%clk 0:00:24.8]} 1-0

[Event "Early-Titled-Tuesday-Blitz-January-23-2024"]
[Site "Chess.com"]
[Date "2024.01.23"]
[Round "10"]
[White "tolimachess"]
[Black "Aleksandar-Topalov"]
[Result "1-0"]
[WhiteElo "2474"]
[BlackElo "2342"]
[TimeControl "180+1"]
[EndTime "9:57:02 PST"]
[Termination "tolimachess won by resignation"]

1. e4 {[%clk 0:03:00.9]} 1... e6 {[%clk 0:02:57.4]} 2. Nc3 {[%clk 0:03:01.8]}
2... d5 {[%clk 0:02:56.5]} 3. d4 {[%clk 0:03:01.6]} 3... Bb4 {[%clk 0:02:52.9]}
4. exd5 {[%clk 0:02:55.7]} 4... exd5 {[%clk 0:02:52.4]} 5. Bd3 {[%clk
0:02:54.4]} 5... Ne7 {[%clk 0:02:52.5]} 6. Ne2 {[%clk 0:02:54.7]} 6... O-O
{[%clk 0:02:52.4]} 7. O-O {[%clk 0:02:55.6]} 7... Bf5 {[%clk 0:02:52.4]} 8. Ng3
{[%clk 0:02:53]} 8... Bg6 {[%clk 0:02:50.8]} 9. Nce2 {[%clk 0:02:48.7]} 9... Nd7
{[%clk 0:02:46.8]} 10. f4 {[%clk 0:02:49.1]} 10... Bxd3 {[%clk 0:02:45.6]} 11.
Qxd3 {[%clk 0:02:49.1]} 11... Bd6 {[%clk 0:02:36.3]} 12. f5 {[%clk 0:02:48.4]}
12... Nf6 {[%clk 0:02:35.9]} 13. Bf4 {[%clk 0:02:48.7]} 13... Bxf4 {[%clk
0:02:33.6]} 14. Nxf4 {[%clk 0:02:49.6]} 14... Nc8 {[%clk 0:02:24.9]} 15. Rae1
{[%clk 0:02:44.5]} 15... c6 {[%clk 0:02:23.6]} 16. Nfh5 {[%clk 0:02:41.7]} 16...
Nd6 {[%clk 0:02:21.6]} 17. Nxf6+ {[%clk 0:02:40.9]} 17... Qxf6 {[%clk
0:02:21.8]} 18. Nh5 {[%clk 0:02:41.8]} 18... Qg5 {[%clk 0:02:21.4]} 19. Qf3
{[%clk 0:02:32.8]} 19... Rfe8 {[%clk 0:02:11.7]} 20. f6 {[%clk 0:02:30.2]} 20...
g6 {[%clk 0:02:06.8]} 21. Ng7 {[%clk 0:02:26.4]} 21... Re4 {[%clk 0:02:06.5]}
22. Rxe4 {[%clk 0:02:24.3]} 22... Nxe4 {[%clk 0:02:03.1]} 23. Qf4 {[%clk
0:02:09.5]} 23... Qxf4 {[%clk 0:01:58.6]} 24. Rxf4 {[%clk 0:02:10.4]} 24... Nxf6
{[%clk 0:01:58.2]} 25. Rxf6 {[%clk 0:02:02.3]} 25... Kxg7 {[%clk 0:01:58]} 26.
Rd6 {[%clk 0:02:02.9]} 26... Re8 {[%clk 0:01:58.1]} 27. Kf2 {[%clk 0:02:03.2]}
27... Re7 {[%clk 0:01:57.6]} 28. Rd8 {[%clk 0:02:03.2]} 28... h5 {[%clk
0:01:51.5]} 29. b4 {[%clk 0:02:00.3]} 29... a6 {[%clk 0:01:50.2]} 30. a4 {[%clk
0:02:00.4]} 30... Kf6 {[%clk 0:01:50.1]} 31. c3 {[%clk 0:01:58.6]} 31... Kf5
{[%clk 0:01:48.2]} 32. Kf3 {[%clk 0:01:56.4]} 32... g5 {[%clk 0:01:45.6]} 33. h3
{[%clk 0:01:56.2]} 33... g4+ {[%clk 0:01:45.2]} 34. hxg4+ {[%clk 0:01:56.5]}
34... hxg4+ {[%clk 0:01:45.7]} 35. Kf2 {[%clk 0:01:57]} 35... Kf4 {[%clk
0:01:45.2]} 36. g3+ {[%clk 0:01:56.4]} 36... Ke4 {[%clk 0:01:41.9]} 37. Ke2
{[%clk 0:01:56.2]} 37... Kf5+ {[%clk 0:01:39.9]} 38. Kf2 {[%clk 0:01:56.5]}
38... Kf6 {[%clk 0:01:24.6]} 39. Rg8 {[%clk 0:01:54.2]} 39... Kf5 {[%clk
0:01:24.4]} 40. Rb8 {[%clk 0:01:50.8]} 40... Ke4 {[%clk 0:01:20.2]} 41. Ke2
{[%clk 0:01:51]} 41... f5 {[%clk 0:01:20.4]} 42. Rf8 {[%clk 0:01:45.6]} 42... b5
{[%clk 0:01:14.7]} 43. a5 {[%clk 0:01:44.2]} 43... Re6 {[%clk 0:01:14]} 44. Rf7
{[%clk 0:01:44.1]} 44... Re8 {[%clk 0:01:11.9]} 45. Rf6 {[%clk 0:01:39.3]} 45...
Re7 {[%clk 0:01:09.9]} 46. Rxc6 {[%clk 0:01:34.2]} 46... f4 {[%clk 0:01:10.3]}
47. Kf2 {[%clk 0:01:12]} 47... Rf7 {[%clk 0:00:55.8]} 48. gxf4 {[%clk
0:01:06.3]} 48... Rxf4+ {[%clk 0:00:54.9]} 49. Kg3 {[%clk 0:01:07]} 49... Rf1
{[%clk 0:00:42.8]} 50. Kxg4 {[%clk 0:01:05.1]} 50... Rg1+ {[%clk 0:00:43]} 51.
Kh5 {[%clk 0:01:05.3]} 51... Kd3 {[%clk 0:00:43]} 52. Rxa6 {[%clk 0:00:41.9]}
52... Kxc3 {[%clk 0:00:42.9]} 53. Rd6 {[%clk 0:00:30]} 53... Kxd4 {[%clk
0:00:42.7]} 54. Rc6 {[%clk 0:00:21.5]} 54... Rb1 {[%clk 0:00:40.1]} 55. a6
{[%clk 0:00:19.2]} 55... Rxb4 {[%clk 0:00:39.9]} 56. a7 {[%clk 0:00:19.4]} 56...
Ra4 {[%clk 0:00:39.4]} 57. Rc7 {[%clk 0:00:20]} 57... b4 {[%clk 0:00:36]} 58.
Rb7 {[%clk 0:00:20.5]} 58... b3 {[%clk 0:00:35.2]} 59. Rb4+ {[%clk 0:00:20.8]}
59... Kc5 {[%clk 0:00:32.2]} 60. Rxa4 {[%clk 0:00:20.4]} 60... b2 {[%clk
0:00:32.3]} 61. a8=Q {[%clk 0:00:19.6]} 61... b1=Q {[%clk 0:00:31.4]} 62. Ra5+
{[%clk 0:00:19.8]} 62... Kd4 {[%clk 0:00:31.1]} 63. Qxd5+ {[%clk 0:00:20]} 63...
Ke3 {[%clk 0:00:31.1]} 64. Ra3+ {[%clk 0:00:20]} 64... Kf2 {[%clk 0:00:31]} 65.
Qd4+ {[%clk 0:00:18.9]} 65... Ke1 {[%clk 0:00:30.5]} 66. Ra1 {[%clk 0:00:19]}
66... Qxa1 {[%clk 0:00:29.8]} 67. Qxa1+ {[%clk 0:00:19.9]} 1-0